fUSD/lending_fUSD_20241227
["ID","MTS","AMOUNT","RATE_DAILY","PERIOD"]
[346857619,1735327866833,-513.22,0.00011569,2]
[346857620,1735327866842,-746.43,0.00011569,2]
[346857621,1735327866852,-500.0,0.00011569,2]
[346857622,1735327866861,-635.02,0.00011569,2]
[346857623,1735327866871,-1326.81,0.00011569,2]
[346857624,1735327866880,-621.88,0.00011569,2]
[346857625,1735327866889,-3050.71,0.00011569,2]
[346857626,1735327866899,-500.0,0.00011569,2]
[346857627,1735327866909,-795.47,0.00011569,2]
[346857628,1735327866919,-500.0,0.00011569,2]
[346857629,1735327866933,-744.87,0.00011569,2]
[346857630,1735327866943,-500.0,0.00011569,2]
[346857631,1735327866952,-1537.63,0.00011569,2]
[346857632,1735327866962,-3941.67,0.00011569,2]
[346857633,1735327866973,-1113.49,0.00011569,2]
[346857634,1735327866982,-500.0,0.00011569,2]
[346857635,1735327866992,-500.0,0.00011569,2]
[346857636,1735327867002,-500.0,0.00011569,2]
[346857637,1735327867012,-500.0,0.00011569,2]
[346857638,1735327867022,-974.18,0.00011569,2]
[346857639,1735327867031,-713.43,0.00011569,2]
[346857640,1735327867041,-600.69,0.00011569,2]
[346857641,1735327867050,-1720.59,0.00011569,2]
[346857642,1735327867059,-2437.95,0.00011569,2]
[346857643,1735327867068,-658.82,0.00011569,2]
[346857644,1735327867077,-676.84,0.00011569,2]
[346857645,1735327867086,-500.0,0.00011569,2]
[346857646,1735327867096,-604.71,0.00011569,2]
[346857647,1735327867105,-619.15,0.00011569,2]
[346857648,1735327867115,-778.14,0.00011569,2]
[346857649,1735327867124,-10480.82,0.00011569,2]
[346857650,1735327867134,-1304.59,0.00011569,2]
[346857651,1735327867143,-2971.89,0.00011569,2]
[346857652,1735327867153,-1634.21,0.00011569,2]
[346857653,1735327867163,-780.68,0.00011569,2]
[346857654,1735327867173,-853.28,0.00011569,2]
[346857655,1735327867182,-1842.74,0.00011569,2]
[346857656,1735327867191,-500.0,0.00011569,2]
[346857657,1735327867201,-1708.9,0.00011569,2]
[346857658,1735327867210,-6904.04,0.00011569,2]
[346857659,1735327867219,-500.0,0.00011569,2]
[346857660,1735327867228,-500.0,0.00011569,2]
[346857661,1735327867238,-500.0,0.00011569,2]
[346857662,1735327867248,-1023.43,0.00011569,2]
[346857663,1735327867257,-1164.81,0.00011569,2]
[346857664,1735327867267,-500.0,0.00011569,2]
[346857665,1735327867276,-760.12,0.00011569,2]
[346857666,1735327867286,-1296.17,0.00011569,2]
[346857667,1735327867296,-1392.95,0.00011569,2]
[346857668,1735327867307,-709.44,0.00011569,2]
[346857669,1735327867318,-962.75,0.00011569,2]
[346857670,1735327867327,-2076.22,0.00011569,2]
[346857671,1735327867337,-1737.66,0.00011569,2]
[346857672,1735327867346,-1039.21,0.00011569,2]
[346857673,1735327867356,-814.6,0.00011569,2]
[346857674,1735327867365,-960.84,0.00011569,2]
[346857675,1735327867375,-2282.43,0.00011569,2]
[346857676,1735327867385,-979.22,0.00011569,2]
[346857677,1735327867395,-2619.64,0.00011569,2]
[346857678,1735327867404,-9634.39,0.00011569,2]
[346857679,1735327867414,-1048.16,0.00011569,2]
[346857680,1735327867423,-21909.05,0.00011569,2]
[346857681,1735327867433,-639.63,0.00011569,2]
[346857682,1735327867443,-661.09,0.00011569,2]
[346857683,1735327867452,-500.0,0.00011569,2]
[346857684,1735327867462,-642.38,0.00011569,2]
[346857685,1735327867472,-500.0,0.00011569,2]
[346857686,1735327867484,-3219.25,0.00011569,2]
[346857687,1735327867493,-948.79,0.00011569,2]
[346857688,1735327867502,-1319.06,0.00011569,2]
[346857689,1735327867511,-5875.46,0.00011569,2]
[346857690,1735327867520,-1008.61,0.00011569,2]
[346857691,1735327867529,-1508.34,0.00011569,2]
[346857692,1735327867538,-2086.31,0.00011569,2]
[346857693,1735327867548,-3330.48,0.00011569,2]
[346857694,1735327867557,-1098.9,0.00011569,2]
[346857695,1735327867566,-811.95,0.00011569,2]
[346857696,1735327867575,-1040.8,0.00011569,2]
[346857697,1735327867585,-1153.33,0.00011569,2]
[346857698,1735327867594,-1587.99,0.00011569,2]
[346857699,1735327867604,-16931.01,0.00011569,2]
[346857700,1735327867614,-3607.91,0.00011569,2]
[346857701,1735327867623,-500.0,0.00011569,2]
[346857702,1735327867633,-3476.64,0.00011569,2]
[346857703,1735327867642,-861.7,0.00011569,2]
[346857704,1735327867651,-511.84,0.00011569,2]
[346857705,1735327867661,-980.64,0.00011569,2]
[346857706,1735327867670,-7500.0,0.00011569,2]
[346857707,1735327867679,-500.0,0.00011569,2]
[346857708,1735327867688,-500.0,0.00011569,2]
[346857709,1735327867698,-500.0,0.00011569,2]
[346857710,1735327867708,-2791.86,0.00011569,2]
[346857711,1735327867717,-1191.16,0.00011569,2]
[346857712,1735327867727,-5875.13,0.00011569,2]
[346857713,1735327867736,-1350.86,0.00011569,2]
[346857714,1735327867746,-500.0,0.00011569,2]
[346857715,1735327867755,-1398.03,0.00011569,2]
[346857716,1735327867765,-1282.83,0.00011569,2]
[346857717,1735327867774,-1725.83,0.00011569,2]
[346857718,1735327867784,-689.22,0.00011569,2]
[346857719,1735327867794,-8674.43,0.00011569,2]
[346857720,1735327867803,-987.82,0.00011569,2]
[346857721,1735327867812,-894.36,0.00011569,2]
[346857722,1735327867822,-514.8,0.00011569,2]
[346857723,1735327867831,-1082.57,0.00011569,2]
[346857724,1735327867841,-547.76,0.00011569,2]
[346857725,1735327867851,-914.78,0.0001157,2]
[346857726,1735327867860,-470.08,0.0001157,2]
[346857727,1735327867870,-500.0,0.0001157,2]
[346857728,1735327867879,-500.0,0.0001157,2]
[346857729,1735327867888,-1017.89,0.0001157,2]
[346857730,1735327867897,-500.0,0.0001157,2]
[346857731,1735327867907,-500.0,0.0001157,2]
[346857732,1735327867916,-500.0,0.0001157,2]
[346857733,1735327867929,-530.26,0.0001157,2]
[346857734,1735327867939,-500.0,0.0001157,2]
[346857735,1735327867950,-971.36,0.0001157,2]
[346857736,1735327867962,-538.26,0.0001157,2]
[346857737,1735327867972,-500.0,0.0001157,2]
[346857738,1735327867982,-718.98,0.0001157,2]
[346857739,1735327867991,-771.49,0.0001157,2]
[346857740,1735327868000,-500.0,0.0001157,2]
[346857741,1735327868010,-822.82,0.0001157,2]
[346857742,1735327868020,-222.21187179,0.0001157,2]
[346857743,1735327868030,-500.0,0.0001157,2]
[346857744,1735327868039,-500.0,0.0001157,2]
[346857745,1735327868049,-618.25,0.0001157,2]
[346857746,1735327868060,-534.28,0.0001157,2]
[346857747,1735327868071,-661.76,0.0001157,2]
[346857748,1735327868081,-500.0,0.0001157,2]
[346857749,1735327868091,-500.0,0.0001157,2]
[346857750,1735327868100,-500.0,0.0001157,2]
[346857751,1735327868112,-181.02,0.0001157,2]
[346857752,1735327868123,-696.42,0.0001157,2]
[346857753,1735327868132,-614.17,0.0001157,2]
[346857754,1735327868142,-500.0,0.0001157,2]
[346857755,1735327868152,-517.99,0.0001157,2]
[346857756,1735327868162,-500.0,0.0001157,2]
[346857757,1735327868172,-569.46,0.0001157,2]
[346857758,1735327868182,-500.0,0.0001157,2]
[346857759,1735327868192,-1062.3,0.0001157,2]
[346857760,1735327868202,-500.0,0.0001157,2]
[346857761,1735327868211,-965.87,0.0001157,2]
[346857762,1735327868221,-500.0,0.0001157,2]
[346857763,1735327868231,-500.0,0.0001157,2]
[346857764,1735327868241,-622.91,0.0001157,2]
[346857765,1735327868251,-500.0,0.0001157,2]
[346857766,1735327868261,-213.97,0.0001157,2]
[346857767,1735327868270,-708.84,0.0001157,2]
[346857768,1735327868280,-500.0,0.0001157,2]
[346857769,1735327868289,-500.0,0.0001157,2]
[346857770,1735327868298,-611.88,0.0001157,2]
[346857771,1735327868308,-500.0,0.0001157,2]
[346857772,1735327868318,-500.0,0.0001157,2]
[346857773,1735327868327,-500.0,0.0001157,2]
[346857774,1735327868337,-500.0,0.0001157,2]
[346857775,1735327868348,-1204.2,0.0001157,2]
[346857776,1735327868357,-500.0,0.0001157,2]
[346857777,1735327868367,-500.0,0.0001157,2]
[346857778,1735327868377,-500.0,0.0001157,2]
[346857779,1735327868387,-500.0,0.0001157,2]
[346857780,1735327868396,-500.0,0.0001157,2]
[346857781,1735327868405,-500.0,0.0001157,2]
[346857782,1735327868415,-500.0,0.0001157,2]
[346857783,1735327868424,-500.0,0.0001157,2]
[346857784,1735327868434,-500.0,0.0001157,2]
[346857785,1735327868443,-864.91,0.0001157,2]
[346857786,1735327868452,-500.0,0.0001157,2]
[346857787,1735327868462,-822.17,0.0001157,2]
[346857788,1735327868473,-827.08,0.0001157,2]
[346857789,1735327868484,-1069.62,0.0001157,2]
[346857790,1735327868496,-500.0,0.0001157,2]
[346857791,1735327868505,-747.44,0.0001157,2]
[346857792,1735327868516,-500.0,0.0001157,2]
[346857793,1735327868526,-759.81,0.0001157,2]
[346857794,1735327868536,-719.0,0.0001157,2]
[346857795,1735327868546,-709.62,0.0001157,2]
[346857796,1735327868556,-500.0,0.0001157,2]
[346857797,1735327868566,-500.0,0.0001157,2]
[346857798,1735327868577,-1329.06,0.0001157,2]
[346857799,1735327868589,-962.7,0.0001157,2]
[346857800,1735327868598,-1370.85,0.0001157,2]
[346857801,1735327868608,-500.0,0.0001157,2]
[346857802,1735327868617,-609.26,0.0001157,2]
[346857803,1735327868627,-500.0,0.0001157,2]
[346857804,1735327868638,-697.23,0.0001157,2]
[346857805,1735327868648,-1079.6,0.0001157,2]
[346857806,1735327868657,-500.0,0.0001157,2]
[346857807,1735327868667,-500.0,0.0001157,2]
[346857808,1735327868677,-1102.68,0.0001157,2]
[346857809,1735327868686,-500.0,0.0001157,2]
[346857810,1735327868696,-821.87,0.0001157,2]
[346857811,1735327868706,-507.21,0.0001157,2]
[346857812,1735327868715,-500.0,0.0001157,2]
[346857813,1735327868725,-588.42,0.0001157,2]
[346857814,1735327868734,-500.0,0.0001157,2]
[346857815,1735327868743,-500.0,0.0001157,2]
[346857816,1735327868754,-749.45,0.0001157,2]
[346857817,1735327868764,-688.19,0.0001157,2]
[346857818,1735327868773,-500.0,0.0001157,2]
[346857819,1735327868782,-571.8,0.0001157,2]
[346857820,1735327868793,-701.49,0.0001157,2]
[346857821,1735327868802,-500.0,0.0001157,2]
[346857822,1735327868812,-500.0,0.0001157,2]
[346857823,1735327868822,-500.0,0.0001157,2]
[346857824,1735327868831,-805.15,0.0001157,2]
[346857825,1735327868841,-500.0,0.0001157,2]
[346857826,1735327868851,-500.0,0.0001157,2]
[346857827,1735327868861,-773.33,0.0001157,2]
[346857828,1735327868870,-189.22,0.0001157,2]
[346857829,1735327868880,-565.02,0.0001157,2]
[346857830,1735327868890,-583.28,0.0001157,2]
[346857831,1735327868900,-626.42,0.0001157,2]
[346857832,1735327868910,-564.7,0.0001157,2]
[346857833,1735327868921,-880.01,0.0001157,2]
[346857834,1735327868938,-500.0,0.0001157,2]
[346857835,1735327868949,-567.69,0.0001157,2]
[346857836,1735327868960,-641.19,0.0001157,2]
[346857837,1735327868971,-1366.74,0.0001157,2]
[346857838,1735327868982,-500.0,0.0001157,2]
[346857839,1735327868994,-500.0,0.0001157,2]
[346857840,1735327869006,-500.0,0.0001157,2]
[346857841,1735327869017,-935.37,0.0001157,2]
[346857842,1735327869028,-176.19614856,0.0001157,2]
[346857843,1735327869038,-653.71,0.0001157,2]
[346857844,1735327869048,-500.0,0.0001157,2]
[346857845,1735327869060,-500.0,0.0001157,2]
[346857846,1735327869070,-500.0,0.0001157,2]
[346857847,1735327869080,-776.14,0.0001157,2]
[346857848,1735327869091,-670.06,0.0001157,2]
[346857849,1735327869100,-500.0,0.0001157,2]
[346857850,1735327869110,-738.92,0.0001157,2]
[346857851,1735327869120,-500.0,0.0001157,2]
[346857852,1735327869131,-860.73,0.0001157,2]
[346857853,1735327869142,-525.59,0.0001157,2]
[346857854,1735327869152,-802.32,0.0001157,2]
[346857855,1735327869162,-864.23,0.0001157,2]
[346857856,1735327869171,-697.26,0.0001157,2]
[346857857,1735327869181,-500.0,0.0001157,2]
[346857858,1735327869191,-500.0,0.0001157,2]
[346857859,1735327869200,-602.97,0.0001157,2]
[346857860,1735327869211,-600.9,0.0001157,2]
[346857861,1735327869220,-500.0,0.0001157,2]
[346857862,1735327869230,-500.0,0.0001157,2]
[346857863,1735327869240,-500.0,0.0001157,2]
[346857864,1735327869250,-579.99,0.0001157,2]
[346857865,1735327869260,-639.05,0.0001157,2]
[346857866,1735327869270,-1241.45,0.0001157,2]
[346857867,1735327869281,-561.93,0.0001157,2]
[346857868,1735327869291,-500.0,0.0001157,2]
[346857869,1735327869303,-500.0,0.0001157,2]
[346857870,1735327869313,-651.91,0.0001157,2]
[346857871,1735327869323,-715.61,0.0001157,2]
[346857872,1735327869334,-672.42,0.0001157,2]
[346857873,1735327869344,-500.0,0.0001157,2]
[346857874,1735327869355,-870.17,0.0001157,2]
[346857875,1735327869368,-694.62,0.0001157,2]
[346857876,1735327869378,-500.0,0.0001157,2]
[346857877,1735327869389,-1706.89,0.0001157,2]
[346857878,1735327869400,-500.0,0.0001157,2]
[346857879,1735327869411,-707.39,0.0001157,2]
[346857880,1735327869421,-762.15,0.0001157,2]
[346857881,1735327869431,-1071.39,0.0001157,2]
[346857882,1735327869442,-500.0,0.0001157,2]
[346857883,1735327869451,-539.93,0.0001157,2]
[346857884,1735327869461,-1144.94,0.0001157,2]
[346857885,1735327869471,-500.0,0.0001157,2]
[346857886,1735327869483,-533.95,0.0001157,2]
[346857887,1735327869493,-1569.21,0.0001157,2]
[346857888,1735327869503,-753.07,0.0001157,2]
[346857889,1735327869514,-868.02,0.0001157,2]
[346857890,1735327869523,-500.0,0.0001157,2]
[346857891,1735327869534,-829.76,0.0001157,2]
[346857892,1735327869547,-818.76,0.0001157,2]
[346857893,1735327869557,-2315.78,0.0001157,2]
[346857894,1735327869568,-543.64,0.0001157,2]
[346857895,1735327869577,-500.0,0.0001157,2]
[346857896,1735327869587,-500.0,0.0001157,2]
[346857897,1735327869597,-500.0,0.0001157,2]
[346857898,1735327869607,-621.07,0.0001157,2]
[346857899,1735327869617,-585.74,0.0001157,2]
[346857900,1735327869627,-949.15,0.0001157,2]
[346857901,1735327869638,-1581.89,0.0001157,2]
[346857902,1735327869647,-1320.96,0.0001157,2]
[346857903,1735327869657,-600.21,0.0001157,2]
[346857904,1735327869667,-500.0,0.0001157,2]
[346857905,1735327869677,-500.0,0.0001157,2]
[346857906,1735327869687,-662.7,0.0001157,2]
[346857907,1735327869696,-1157.3,0.0001157,2]
[346857908,1735327869707,-500.0,0.0001157,2]
[346857909,1735327869716,-500.0,0.0001157,2]
[346857910,1735327869727,-500.0,0.0001157,2]
[346857911,1735327869737,-943.84,0.0001157,2]
[346857912,1735327869747,-1468.15,0.0001157,2]
[346857913,1735327869757,-1101.33,0.0001157,2]
[346857914,1735327869767,-821.55,0.0001157,2]
[346857915,1735327869776,-932.25,0.0001157,2]
[346857916,1735327869786,-992.46,0.0001157,2]
[346857917,1735327869796,-500.0,0.0001157,2]
[346857918,1735327869806,-658.36,0.0001157,2]
[346857919,1735327869816,-3777.44,0.0001157,2]
[346857920,1735327869827,-768.36,0.0001157,2]
[346857921,1735327869837,-1190.5,0.0001157,2]
[346857922,1735327869847,-500.0,0.0001157,2]
[346857923,1735327869857,-500.0,0.0001157,2]
[346857924,1735327869867,-500.0,0.0001157,2]
[346857925,1735327869877,-1080.86,0.0001157,2]
[346857926,1735327869887,-500.0,0.0001157,2]
[346857927,1735327869897,-1307.15,0.0001157,2]
[346857928,1735327869907,-1480.9,0.0001157,2]
[346857929,1735327869917,-621.62,0.0001157,2]
[346857930,1735327869929,-1589.18,0.0001157,2]
[346857931,1735327869939,-500.0,0.0001157,2]
[346857932,1735327869949,-500.0,0.0001157,2]
[346857933,1735327869959,-500.0,0.0001157,2]
[346857934,1735327869968,-1086.28,0.0001157,2]
[346857935,1735327869978,-598.04,0.0001157,2]
[346857936,1735327869989,-500.0,0.0001157,2]
[346857937,1735327869999,-535.83,0.0001157,2]
[346857938,1735327870011,-520.26,0.0001157,2]
[346857939,1735327870021,-500.0,0.0001157,2]
[346857940,1735327870032,-681.88,0.0001157,2]
[346857941,1735327870043,-842.18,0.0001157,2]
[346857942,1735327870053,-681.85,0.0001157,2]
[346857943,1735327870065,-821.13,0.0001157,2]
[346857944,1735327870075,-500.0,0.0001157,2]
[346857945,1735327870085,-1049.86,0.0001157,2]
[346857946,1735327870097,-500.0,0.0001157,2]
[346857947,1735327870107,-688.35,0.0001157,2]
[346857948,1735327870117,-500.0,0.0001157,2]
[346857949,1735327870128,-725.49,0.0001157,2]
[346857950,1735327870138,-1117.69,0.0001157,2]
[346857951,1735327870148,-500.0,0.0001157,2]
[346857952,1735327870159,-500.0,0.0001157,2]
[346857953,1735327870169,-500.0,0.0001157,2]
[346857954,1735327870180,-810.22,0.0001157,2]
[346857955,1735327870190,-500.0,0.0001157,2]
[346857956,1735327870201,-656.43,0.0001157,2]
[346857957,1735327870211,-714.54,0.0001157,2]
[346857958,1735327870222,-1871.7,0.0001157,2]
[346857959,1735327870232,-500.0,0.0001157,2]
[346857960,1735327870244,-500.0,0.0001157,2]
[346857961,1735327870255,-500.0,0.0001157,2]
[346857962,1735327870265,-500.0,0.0001157,2]
[346857963,1735327870275,-500.0,0.0001157,2]
[346857964,1735327870285,-500.0,0.0001157,2]
[346857965,1735327870297,-994.46,0.0001157,2]
[346857966,1735327870307,-500.0,0.0001157,2]
[346857967,1735327870317,-1152.54,0.0001157,2]
[346857968,1735327870327,-595.27,0.0001157,2]
[346857969,1735327870338,-2119.05,0.0001157,2]
[346857970,1735327870347,-697.19,0.0001157,2]
[346857971,1735327870358,-1935.22,0.0001157,2]
[346857972,1735327870368,-781.34,0.0001157,2]
[346857973,1735327870379,-500.0,0.0001157,2]
[346857974,1735327870389,-727.06,0.0001157,2]
[346857975,1735327870400,-1462.26,0.0001157,2]
[346857976,1735327870410,-500.0,0.0001157,2]
[346857977,1735327870420,-500.0,0.0001157,2]
[346857978,1735327870430,-1875.0,0.0001157,2]
[346857979,1735327870440,-500.0,0.0001157,2]
[346857980,1735327870450,-500.0,0.0001157,2]
[346857981,1735327870460,-1589.0,0.0001157,2]
[346857982,1735327870470,-1532.28,0.0001157,2]
[346857983,1735327870480,-500.0,0.0001157,2]
[346857984,1735327870490,-1413.87,0.0001157,2]
[346857985,1735327870500,-500.0,0.0001157,2]
[346857986,1735327870510,-721.22,0.0001157,2]
[346857987,1735327870520,-500.0,0.0001157,2]
[346857988,1735327870530,-500.0,0.0001157,2]
[346857989,1735327870541,-834.18,0.0001157,2]
[346857990,1735327870551,-2207.8,0.0001157,2]
[346857991,1735327870561,-1750.37,0.0001157,2]
[346857992,1735327870571,-636.34,0.0001157,2]
[346857993,1735327870580,-734.13,0.0001157,2]
[346857994,1735327870590,-500.0,0.0001157,2]
[346857995,1735327870600,-500.0,0.0001157,2]
[346857996,1735327870609,-370.13,0.0001157,2]
[346857997,1735327870619,-1296.55,0.0001157,2]
[346857998,1735327870632,-500.0,0.0001157,2]
[346857999,1735327870643,-553.14,0.0001157,2]
[346858000,1735327870654,-1195.8,0.0001157,2]
[346858001,1735327870665,-519.35,0.0001157,2]
[346858002,1735327870676,-500.0,0.0001157,2]
[346858003,1735327870687,-786.72,0.0001157,2]
[346858004,1735327870700,-500.0,0.0001157,2]
[346858005,1735327870926,-2308.47,0.0001157,2]
[346858006,1735327870940,-464.91486219,0.0001157,2]
[346858007,1735327870950,-500.0,0.0001157,2]
[346858008,1735327870959,-1752.04,0.0001157,2]
[346858009,1735327870969,-500.0,0.0001157,2]
[346858010,1735327870979,-500.0,0.0001157,2]
[346858011,1735327870989,-500.0,0.0001157,2]
[346858012,1735327870998,-500.0,0.0001157,2]
[346858013,1735327871008,-4477.95,0.0001157,2]
[346858014,1735327871018,-640.92,0.0001157,2]
[346858015,1735327871027,-500.0,0.0001157,2]
[346858016,1735327871037,-500.0,0.0001157,2]
[346858017,1735327871048,-1016.54,0.0001157,2]
[346858018,1735327871058,-1005.52,0.0001157,2]
[346858019,1735327871068,-1105.79,0.0001157,2]
[346858020,1735327871077,-6927.11,0.0001157,2]
[346858021,1735327871089,-916.26,0.0001157,2]
[346858022,1735327871099,-500.0,0.0001157,2]
[346858023,1735327871108,-1484.71,0.0001157,2]
[346858024,1735327871118,-500.0,0.0001157,2]
[346858025,1735327871128,-1276.52,0.0001157,2]
[346858026,1735327871137,-1722.12,0.0001157,2]
[346858027,1735327871147,-645.82,0.0001157,2]
[346858028,1735327871157,-2194.05,0.0001157,2]
[346858029,1735327871167,-500.0,0.0001157,2]
[346858030,1735327871178,-526.78,0.0001157,2]
[346858031,1735327871187,-500.0,0.0001157,2]
[346858032,1735327871197,-1759.06,0.0001157,2]
[346858033,1735327871208,-527.79,0.0001157,2]
[346858034,1735327871217,-1543.82,0.0001157,2]
[346858035,1735327871227,-2298.8,0.0001157,2]
[346858036,1735327871237,-151.0,0.0001157,2]
[346858037,1735327871247,-500.0,0.0001157,2]
[346858038,1735327871258,-4839.1,0.0001157,2]
[346858039,1735327871269,-500.0,0.0001157,2]
[346858040,1735327871279,-605.85,0.0001157,2]
[346858041,1735327871288,-500.0,0.0001157,2]
[346858042,1735327871298,-500.0,0.0001157,2]
[346858043,1735327871307,-500.0,0.0001157,2]
[346858044,1735327871316,-500.0,0.0001157,2]
[346858045,1735327871325,-1222.27,0.0001157,2]
[346858046,1735327871335,-722.49,0.0001157,2]
[346858047,1735327871344,-748.44,0.0001157,2]
[346858048,1735327871354,-500.0,0.0001157,2]
[346858049,1735327871364,-500.0,0.0001157,2]
[346858050,1735327871374,-675.77,0.0001157,2]
[346858051,1735327871383,-500.0,0.0001157,2]
[346858052,1735327871393,-981.97,0.0001157,2]
[346858053,1735327871404,-690.61,0.0001157,2]
[346858054,1735327871413,-5992.19,0.0001157,2]
[346858055,1735327871423,-2423.85,0.0001157,2]
[346858056,1735327871432,-3858.17,0.0001157,2]
[346858057,1735327871443,-6790.11,0.00011571,2]
[346858058,1735327871452,-4114.97,0.00011571,2]
[346858059,1735327871462,-2193.51,0.00011572,2]
[346858060,1735327871472,-3946.9,0.00011572,2]
[346858061,1735327871482,-799.37,0.00011572,2]
[346858062,1735327871492,-2095.69,0.00011572,2]
[346858063,1735327871502,-2349.17,0.00011572,2]
[346858064,1735327871512,-2223.27,0.00011572,2]
[346858065,1735327871521,-1685.15,0.00011572,2]
[346858066,1735327871531,-2515.82,0.00011572,2]
[346858067,1735327871541,-2911.41,0.00011572,2]
[346858068,1735327871550,-7500.0,0.00011573,2]
[346858069,1735327871559,-3004.86,0.00011575,2]
[346858070,1735327871568,-22542.46,0.00011575,2]
[346858071,1735327871579,-855.98,0.00011575,2]
[346858072,1735327871588,-3894.85,0.00011575,2]
[346858073,1735327871598,-2427.1,0.00011575,2]
[346858074,1735327871607,-1765.52,0.00011575,2]
[346858075,1735327871617,-4989.84,0.00011575,2]
[346858076,1735327871627,-700.64,0.00011575,2]
[346858077,1735327871636,-1477.0,0.00011575,2]
[346858078,1735327871646,-1778.7,0.00011575,2]
[346858079,1735327871656,-1268.62,0.00011575,2]
[346858080,1735327871666,-4508.18,0.00011575,2]
[346858081,1735327871676,-3201.31,0.00011575,2]
[346858082,1735327871686,-151.0,0.00011575,2]
[346858083,1735327871695,-2228.05,0.00011575,2]
[346858084,1735327871705,-500.0,0.00011577,2]
[346858085,1735327871714,-237.0,0.000116,2]
[346858086,1735327871723,-150.0,0.0001169,2]
[346858087,1735327871733,-500.0,0.00011714,2]
[346858088,1735327871742,-150.0,0.00011766,2]
[346858089,1735327871752,-48944.0,0.000118,2]
[346858090,1735327871761,-154.90338886,0.000118,2]
[346858091,1735327871770,-2500.0,0.0001181,2]
[346858092,1735327871779,-547.63,0.00011842,2]
[346858093,1735327871789,-2480.34,0.00011842,2]
[346858094,1735327871798,-620.73,0.00011842,2]
[346858095,1735327871808,-8207.84,0.00011842,2]
[346858096,1735327871817,-2202.02,0.00011842,2]
[346858097,1735327871826,-7500.0,0.00011842,2]
[346858098,1735327871835,-1962.81,0.00011842,2]
[346858099,1735327871845,-1805.97,0.00011842,2]
[346858100,1735327871854,-3124.93,0.00011842,2]
[346858101,1735327871863,-500.0,0.00011842,2]
[346858102,1735327871873,-500.0,0.00011842,2]
[346858103,1735327871882,-500.0,0.00011842,2]
[346858104,1735327871892,-1122.76,0.00011842,2]
[346858105,1735327871902,-505.76,0.00011842,2]
[346858106,1735327871911,-540.02,0.00011842,2]
[346858107,1735327871921,-500.0,0.00011842,2]
[346858108,1735327871934,-1094.22,0.00011842,2]
[346858109,1735327871944,-638.62,0.00011842,2]
[346858110,1735327871953,-500.0,0.00011842,2]
[346858111,1735327871963,-604.36,0.00011842,2]
[346858112,1735327871972,-910.93,0.00011842,2]
[346858113,1735327871982,-11532.99835842,0.00011843,2]
[346858114,1735327872433,-2450.0,0.00011843,2]
[346858115,1735327872457,-2003.10011266,0.00011843,2]
[346858116,1735327872466,-44876.53859454,0.00011843,2]
[346858117,1735327872479,-1929.6276839,0.00011843,2]
[346858118,1735327872490,-725.291,0.00011843,2]